bitfinex/quotes_BTCUSD_20251207
["timestamp","ask_amount","ask_price","bid_price","bid_amount"]
[1765129862009,0.04388,91113.0,91112.0,0.0109755]
[1765129862637,0.04388,91113.0,91112.0,0.23048555]
[1765129862900,0.01754899,91115.0,91113.0,0.21950546]
[1765129863071,0.01754899,91115.0,91114.0,0.13072398]
[1765129863270,0.01754899,91115.0,91114.0,0.10852]
[1765129863480,0.01754899,91115.0,91114.0,0.04836]
[1765129864096,0.01754899,91115.0,91112.0,0.0109755]
[1765129864097,0.06180899,91115.0,91112.0,0.0109755]
[1765129864229,0.01754899,91115.0,91112.0,0.23048435]
[1765129864433,0.01754899,91115.0,91112.0,0.0109755]
[1765129864631,0.01097622,91106.0,91101.0,0.01097682]
[1765129864833,0.01097586,91109.0,91103.0,0.01097658]
[1765129865039,0.24020408,91111.0,91108.0,0.23049393]
[1765129865243,0.01097538,91113.0,91110.0,0.01097574]
[1765129865491,0.00568,91111.0,91106.0,0.23050017]
[1765129865694,6e-05,91109.0,91108.0,0.23049498]
[1765129867146,6e-05,91109.0,91108.0,0.01097598]
[1765129867815,6e-05,91109.0,91103.0,0.01097658]
[1765129867816,0.23049602,91108.0,91103.0,0.01097658]
[1765129868046,0.01097598,91108.0,91103.0,0.01097658]
[1765129868164,0.00729287,91104.0,91097.0,0.0109773]
[1765129868409,0.02889658,91103.0,91100.0,0.01097694]
[1765129868612,0.01909287,91103.0,91100.0,0.01097694]
[1765129868974,0.04426,91101.0,91100.0,0.01097694]
[1765129869333,0.09013287,91101.0,91100.0,0.01097694]
[1765129869536,0.09013287,91101.0,91092.0,0.01097791]
[1765129869748,0.08814,91093.0,91091.0,0.23053789]
[1765129869950,0.01748,91092.0,91091.0,0.23053789]
[1765129870150,0.02515287,91092.0,91091.0,0.01097803]
[1765129870349,0.06903287,91092.0,91091.0,0.01097803]
[1765129871736,0.06903287,91092.0,91091.0,0.23053868]
[1765129872367,0.05357393,91092.0,91091.0,0.23053868]
[1765129872559,0.0479,91092.0,91089.0,0.01097827]
[1765129872783,0.03042,91090.0,91089.0,0.01097827]
[1765129872991,0.03042,91090.0,91087.0,0.01097851]
[1765129873168,0.02845791,91092.0,91088.0,0.01097839]
[1765129873169,0.01097803,91091.0,91088.0,0.01097839]
[1765129873728,0.03042,91089.0,91087.0,0.01097851]
[1765129873852,0.01097803,91091.0,91087.0,0.01097851]
[1765129874054,0.01097815,91090.0,91086.0,0.01097863]
[1765129874278,0.03042,91087.0,91083.0,0.01097899]
[1765129874475,0.00012,91086.0,91084.0,0.21957753]
[1765129874753,0.01097899,91083.0,91080.0,0.00099999]
[1765129874925,0.21956893,91088.0,91083.0,0.23055879]
[1765129875126,0.01097839,91088.0,91084.0,0.23055457]
[1765129875386,0.03042,91087.0,91084.0,0.23055457]
[1765129875504,0.03042,91087.0,91084.0,0.01097887]
[1765129876835,0.01097875,91085.0,91082.0,0.01097911]
[1765129877038,0.04139851,91087.0,91083.0,0.23055853]
[1765129877243,0.03042,91086.0,91084.0,0.21957753]
[1765129878878,8.189e-05,91088.0,91085.0,0.23055147]
[1765129879260,8.189e-05,91088.0,91087.0,0.2195703]
[1765129879738,8.189e-05,91088.0,91085.0,0.23055147]
[1765129880652,8.189e-05,91088.0,91085.0,0.01097875]
[1765129881221,8.189e-05,91088.0,91086.0,0.21957048]
[1765129881424,0.03050189,91088.0,91086.0,0.21957048]
[1765129881811,0.03050189,91088.0,91085.0,0.23055152]
[1765129882245,0.01097851,91087.0,91082.0,0.01097911]
[1765129882567,0.01097863,91086.0,91083.0,0.01097899]
[1765129882783,0.03042,91086.0,91084.0,0.01097887]
[1765129882978,0.03042,91086.0,91072.0,0.23058644]
[1765129882979,0.23057385,91078.0,91072.0,0.23058644]
[1765129883184,0.24805491,91077.0,91072.0,0.01098032]
[1765129883396,0.02845972,91077.0,91074.0,0.01098008]
[1765129883817,0.0109802,91073.0,91062.0,0.01098152]
[1765129884040,0.0109802,91073.0,91049.0,0.03836909]
[1765129884041,0.01098116,91065.0,91059.0,0.01098189]
[1765129884250,0.01748,91064.0,91060.0,0.01098177]
[1765129884468,0.01748,91064.0,91063.0,0.21962816]
[1765129886953,0.01097959,91078.0,91074.0,0.01098008]
[1765129887180,0.01748,91077.0,91075.0,0.23057919]
[1765129887400,0.01097815,91090.0,91083.0,0.21957994]
[1765129887692,0.01748,91087.0,91083.0,0.23055893]
[1765129887891,0.01748,91087.0,91076.0,0.01097984]
[1765129887892,0.01097947,91079.0,91076.0,0.01097984]
[1765129888066,0.01097947,91079.0,91073.0,0.0109802]
[1765129888067,0.03042,91077.0,91075.0,0.01097996]
[1765129888266,0.01748,91076.0,91075.0,0.01097996]
[1765129888473,0.0479,91076.0,91073.0,0.0109802]
[1765129888698,0.01748,91076.0,91074.0,0.21960164]
[1765129889059,0.24020408,91086.0,91083.0,0.01097899]
[1765129889296,0.01748,91085.0,91083.0,0.01097899]
[1765129889495,0.04139887,91084.0,91080.0,0.01197934]
[1765129889698,0.01748,91085.0,91082.0,0.01097911]
[1765129889960,0.01748,91085.0,91082.0,0.23055906]
[1765129890545,0.01748,91085.0,91083.0,0.21957758]
[1765129890948,0.01748,91085.0,91084.0,0.15497]
[1765129891148,0.01748,91085.0,91084.0,0.06404]
[1765129891319,0.01748,91085.0,91084.0,0.15497]
[1765129891502,0.01748,91085.0,91084.0,0.06404]
[1765129892543,0.01748,91085.0,91084.0,0.15497]
[1765129892785,0.01748,91085.0,91084.0,0.15658287]
[1765129894674,0.01748,91085.0,91084.0,0.17878685]
[1765129894901,0.01748,91085.0,91084.0,0.50178685]
[1765129895066,0.01748,91085.0,91084.0,0.53030997]
[1765129895263,8.189e-05,91088.0,91085.0,0.23055387]
[1765129895463,8.189e-05,91088.0,91087.0,0.08785685]
[1765129895916,8.189e-05,91088.0,91087.0,0.17878685]
[1765129896084,8.189e-05,91088.0,91087.0,0.50178685]
[1765129899348,8.189e-05,91088.0,91087.0,0.47958287]
[1765129899551,8.189e-05,91088.0,91087.0,0.06565287]
[1765129899782,8.189e-05,91088.0,91087.0,0.03022081]
[1765129899954,0.03050189,91088.0,91087.0,0.2195703]
[1765129900156,0.03050189,91088.0,91087.0,0.2186703]
[1765129900355,0.03050189,91088.0,91086.0,0.21957271]
[1765129900558,0.03050189,91088.0,91085.0,0.01097875]
[1765129900762,0.03050189,91088.0,91086.0,0.21957271]
[1765129901580,8.189e-05,91088.0,91086.0,0.21957271]
[1765129901778,0.03042,91087.0,91086.0,0.21957271]
[1765129902083,0.03042,91087.0,91085.0,0.01097875]
[1765129902286,8.189e-05,91088.0,91086.0,0.21957271]
[1765129904791,8.189e-05,91088.0,91087.0,0.06084]
[1765129905155,0.01756189,91088.0,91087.0,0.06084]
[1765129906293,0.01756189,91088.0,91086.0,0.21957271]
[1765129908067,0.01756189,91088.0,91085.0,0.01097875]
[1765129908433,0.03042,91086.0,91085.0,0.01097875]
[1765129908596,0.03042,91086.0,91085.0,0.01109672]
[1765129908763,0.03042,91086.0,91085.0,0.00011797]
[1765129909598,0.03042,91086.0,91085.0,0.21969309]
[1765129910018,0.03042,91086.0,91085.0,0.00011797]
[1765129912919,0.03042,91086.0,91085.0,0.21969309]
[1765129913119,0.03042,91086.0,91085.0,0.00011797]
[1765129914073,0.27219669,91086.0,91085.0,0.00011797]
[1765129914285,0.24999271,91086.0,91085.0,0.00011797]
[1765129914481,0.59519669,91086.0,91085.0,0.00011797]
[1765129915460,0.71469716,91086.0,91085.0,0.00011797]
[1765129916456,0.65771968,91086.0,91085.0,0.00011797]
[1765129918666,0.6355157,91086.0,91085.0,0.00011797]
[1765129920011,0.65771968,91086.0,91085.0,0.00011797]
[1765129921316,0.57299271,91086.0,91085.0,0.00011797]
[1765129921517,0.24999271,91086.0,91085.0,0.00011797]
[1765129921815,0.27219669,91086.0,91085.0,0.00011797]
[1765129922702,0.73559701,91086.0,91085.0,0.00011797]
[1765129923120,0.65771968,91086.0,91085.0,0.00011797]
[1765129923709,0.6355157,91086.0,91085.0,0.00011797]
[1765129923930,0.65771968,91086.0,91085.0,0.00011797]
[1765129926248,0.35342,91086.0,91085.0,0.00011797]
[1765129926548,0.03042,91086.0,91085.0,0.00011797]
[1765129928473,0.04981,91086.0,91085.0,0.00011797]
[1765129929645,0.26938271,91086.0,91085.0,0.00011797]
[1765129930590,0.03042,91086.0,91085.0,0.00011797]
[1765129930991,0.04981,91086.0,91085.0,0.00011797]
[1765129931677,0.01748,91086.0,91085.0,0.00011797]
[1765129931881,0.01748,91086.0,91085.0,0.21969309]
[1765129933820,0.01748,91086.0,91085.0,0.28345309]
[1765129933964,0.01748,91086.0,91085.0,0.28506596]
[1765129935187,0.03042,91111.0,91108.0,0.23049472]
[1765129935386,0.01748,91110.0,91108.0,0.23049472]
[1765129935520,0.01748,91110.0,91108.0,0.01097598]
[1765129936124,0.01748,91110.0,91108.0,0.23049327]
[1765129936532,0.03042,91111.0,91110.0,0.21951487]
[1765129936733,0.03042,91111.0,91107.0,0.23049807]
[1765129936734,0.03013,91109.0,91107.0,0.0109761]
[1765129936932,0.03002,91108.0,91107.0,0.0109761]
[1765129937977,0.0109761,91107.0,91102.0,0.23051053]
[1765129938179,0.01097622,91106.0,91101.0,0.01097682]
[1765129938360,0.00038,91102.0,91101.0,0.01097682]
[1765129938756,0.03051,91102.0,91099.0,0.23051731]
[1765129938991,0.01097574,91110.0,91104.0,0.01097646]
[1765129939182,0.01939,91108.0,91106.0,0.01097622]
[1765129939397,0.01097598,91108.0,91104.0,0.01097646]
[1765129939587,0.01097586,91109.0,91105.0,0.23050217]
[1765129939916,0.01097586,91109.0,91105.0,0.01097634]
[1765129940054,0.01939,91106.0,91105.0,0.23050325]
[1765129940263,0.0479,91111.0,91109.0,0.21951637]
[1765129940685,0.01939,91110.0,91109.0,0.21951637]
[1765129941250,0.0479,91111.0,91109.0,0.21951637]
[1765129942108,0.01939,91110.0,91107.0,0.0109761]
[1765129942327,0.03002,91110.0,91108.0,0.23049567]
[1765129942682,0.01949,91109.0,91107.0,0.0109761]
[1765129942923,0.01097622,91106.0,91102.0,0.0109767]
[1765129943222,0.23049881,91107.0,91102.0,0.0109767]
[1765129943536,0.23049344,91109.0,91097.0,0.23052131]
[1765129943537,0.0109767,91102.0,91097.0,0.23052131]
[1765129943756,0.04099718,91098.0,91091.0,0.23053641]
[1765129943916,0.04099718,91098.0,91091.0,0.01097803]
[1765129943917,0.01097767,91094.0,91091.0,0.01097803]
[1765129944117,0.01097755,91095.0,91092.0,0.01097791]
[1765129944317,0.03036755,91095.0,91092.0,0.01097791]
[1765129944522,0.03002,91093.0,91092.0,0.01097791]
[1765129944730,0.03002,91093.0,91088.0,0.23054563]
[1765129944897,0.01097815,91090.0,91085.0,0.01109672]
[1765129945133,0.0192,91086.0,91085.0,0.23067184]
[1765129945359,0.03668,91086.0,91085.0,0.23067184]
[1765129946326,0.06681,91086.0,91085.0,0.23067184]
[1765129946730,0.06681,91086.0,91085.0,0.01109672]
[1765129946923,0.06681,91086.0,91085.0,0.00011797]
[1765129947122,0.08901398,91086.0,91085.0,0.00011797]
[1765129947558,0.10604521,91086.0,91085.0,0.00011797]
[1765129949641,0.06681,91086.0,91085.0,0.00011797]
[1765129950934,0.01748,91086.0,91085.0,0.00011797]
[1765129952189,0.01748,91086.0,91085.0,0.06549084]
[1765129952394,0.01748,91086.0,91085.0,0.00173084]
[1765129952395,0.04761,91086.0,91085.0,0.00173084]
[1765129952595,0.067,91086.0,91085.0,0.00173084]
[1765129953017,0.56432752,91086.0,91085.0,0.00011797]
[1765129953237,0.03318478,91068.0,91061.0,0.01098164]
[1765129953385,0.01748,91067.0,91063.0,0.23060909]
[1765129953584,0.03013,91064.0,91061.0,0.01098164]
[1765129953794,0.0002,91062.0,91058.0,0.01098201]
[1765129954141,0.01034,91064.0,91060.0,0.01098177]
[1765129954142,0.02132128,91064.0,91060.0,0.01098177]
[1765129954294,0.02132128,91064.0,91060.0,0.23061706]
[1765129954501,0.01979,91061.0,91060.0,0.23061706]
[1765129954702,0.01979,91061.0,91055.0,0.01098237]
[1765129954703,0.25040565,91061.0,91057.0,0.01098213]
[1765129954905,0.03001,91058.0,91057.0,0.23062477]
[1765129955139,0.03001,91058.0,91057.0,0.01098213]
[1765129955715,0.03001,91058.0,91057.0,0.23062477]
[1765129956256,0.01098345,91046.0,91041.0,0.01098406]
[1765129956480,0.01748,91045.0,91044.0,0.219674]
[1765129957311,0.03727,91045.0,91044.0,0.219674]
[1765129957755,0.01748,91045.0,91044.0,0.22128687]
[1765129957967,0.01748,91045.0,91044.0,0.37519687]
[1765129958364,0.01748,91045.0,91044.0,0.39740085]
[1765129959029,0.01098044,91071.0,91063.0,0.21962816]
[1765129959255,0.33398008,91074.0,91070.0,0.01098056]
[1765129959447,0.01097959,91078.0,91071.0,0.01098044]
[1765129959788,0.01748,91073.0,91072.0,0.21960646]
[1765129961488,0.03727,91073.0,91072.0,0.21960646]
[1765129961661,0.01748,91073.0,91072.0,0.21960646]
[1765129961864,0.03737,91073.0,91072.0,0.21960646]
[1765129966539,0.06718,91073.0,91071.0,0.01098044]
[1765129966719,0.03031,91072.0,91071.0,0.23058931]
[1765129967571,0.03031,91072.0,91071.0,0.01098044]
[1765129967779,0.03031,91072.0,91070.0,0.01098056]
[1765129967995,0.0195,91071.0,91070.0,0.01098056]
[1765129968237,0.0195,91071.0,91055.0,0.21964585]
[1765129968238,0.01098104,91066.0,91040.0,0.00340625]
[1765129968436,0.04951,91071.0,91040.0,0.00340625]
[1765129968437,0.21968124,91041.0,91040.0,0.00340625]
[1765129968652,0.25683124,91041.0,91040.0,0.00340625]
[1765129968861,0.32873522,91041.0,91040.0,0.00340625]
[1765129969541,0.8196276,91041.0,91040.0,0.00340625]
[1765129969766,0.79742362,91041.0,91040.0,0.00340625]
[1765129969973,0.8196276,91041.0,91040.0,0.00340625]
[1765129971246,0.71425821,91041.0,91040.0,0.00340625]
[1765129972930,0.69677821,91041.0,91040.0,0.00340625]
[1765129973057,0.71425821,91041.0,91040.0,0.00340625]
[1765129973451,0.71425821,91041.0,91040.0,0.00379965]
[1765129976324,0.71425821,91041.0,91020.0,0.0004]
[1765129976325,0.62745648,91021.0,91020.0,0.0004]
[1765129976555,0.73215073,91021.0,91020.0,0.0004]
[1765129976736,0.76216073,91021.0,91020.0,0.0004]
[1765129976914,0.79516579,91021.0,91020.0,0.00098943]
[1765129978538,0.70825154,91021.0,91020.0,0.00098943]
[1765129981056,0.36777154,91021.0,91020.0,0.00098943]
[1765129981180,0.38525154,91021.0,91020.0,0.00098943]
[1765129981800,0.28304457,91021.0,91020.0,0.00098943]
[1765129982002,0.30052457,91021.0,91020.0,0.00098943]
[1765129982198,0.36304756,91021.0,91020.0,0.00098943]
[1765129982516,0.36777154,91021.0,91020.0,0.00098943]
[1765129982687,0.38525154,91021.0,91020.0,0.00098943]
[1765129983394,0.78817791,91021.0,91020.0,0.00098943]
[1765129984211,0.78807291,91021.0,91020.0,0.00098943]
[1765129984437,0.70814654,91021.0,91020.0,0.00098943]
[1765129985007,0.68594256,91021.0,91020.0,0.00098943]
[1765129986872,0.70814654,91021.0,91020.0,0.00098943]
[1765129987072,0.69066654,91021.0,91020.0,0.00098943]
[1765129987232,0.70814654,91021.0,91020.0,0.00098943]
[1765129987426,0.8178516,91021.0,91020.0,0.00098943]
[1765129990219,0.8178516,91021.0,91013.0,1.27383773]
[1765129990220,0.64696338,91014.0,91013.0,1.27383773]
[1765129990378,0.64696338,91014.0,91013.0,1.18454599]
[1765129990580,0.67697338,91014.0,91013.0,0.92998211]
[1765129990783,0.78667844,91014.0,91013.0,0.92998211]
[1765129990947,5.86971803,91014.0,91013.0,0.3064422]
[1765129991157,0.62752892,90991.0,90990.0,0.0004]
[1765129991351,0.73946975,90991.0,90990.0,0.0004]
[1765129991586,0.75974975,90991.0,90990.0,0.0004]
[1765129991790,0.76415184,90991.0,90990.0,0.0004]
[1765129993378,0.76415184,90991.0,90970.0,0.0004]
[1765129993379,0.21985028,90971.0,90970.0,0.0004]
[1765129993634,0.75867675,90971.0,90970.0,0.0004]
[1765129993833,0.78818675,90971.0,90970.0,0.0004]
[1765129994449,0.77070675,90971.0,90970.0,0.0004]
[1765129994609,0.69179848,90971.0,90970.0,0.0004]
[1765129995221,0.67431848,90971.0,90970.0,0.0004]
[1765129995471,0.43961541,90990.0,90970.0,0.0130055]
[1765129995472,0.04050154,90979.0,90970.0,0.0130055]
[1765129995670,0.03451123,90978.0,90974.0,0.01099215]
[1765129995982,0.03451123,90978.0,90975.0,0.01099203]
[1765129996186,0.01748,90977.0,90975.0,0.00161287]
[1765129996561,0.01748,90977.0,90975.0,0.00173085]
[1765129996980,0.01748,90977.0,90976.0,0.00129753]
[1765129997183,0.01748,90977.0,90976.0,0.0029104]
[1765130000496,0.03776,90977.0,90976.0,0.0029104]
[1765130003976,0.01099118,90982.0,90976.0,0.0029104]
[1765130003977,0.01099106,90983.0,90978.0,0.01099166]
[1765130004183,0.01748,90982.0,90978.0,0.01260453]
[1765130004398,0.01748,90982.0,90979.0,0.2308202]
[1765130004600,0.01748,90982.0,90979.0,0.23243307]
[1765130004798,0.01748,90982.0,90979.0,0.01260441]
[1765130006630,0.01099009,90991.0,90988.0,0.01099046]
[1765130006851,0.01748,90990.0,90989.0,0.23079711]
[1765130007374,0.01748,90990.0,90989.0,0.01099033]
[1765130007534,0.01748,90990.0,90986.0,0.23080379]
[1765130007736,0.01748,90990.0,90987.0,0.01099058]
[1765130008155,0.01748,90990.0,90986.0,0.0109907]
[1765130008382,0.01748,90990.0,90987.0,0.01099058]
[1765130008544,0.01099094,90984.0,90980.0,0.00099999]
[1765130008747,0.00029,90986.0,90983.0,0.01099106]
[1765130008950,0.0109907,90986.0,90982.0,0.01099118]
[1765130009267,0.23079997,90988.0,90977.0,0.01099178]
[1765130009268,0.0109913,90981.0,90977.0,0.01099178]
[1765130009593,0.02017,90978.0,90975.0,0.00011798]
[1765130009786,0.00049,90976.0,90975.0,0.00011798]
[1765130011148,0.01748,90977.0,90975.0,0.11339798]
[1765130011289,0.01099033,90989.0,90985.0,0.01099082]
[1765130011491,0.01748,90988.0,90985.0,0.01099082]
[1765130011712,0.24931188,90992.0,90986.0,0.23080383]
[1765130011713,0.02951,90992.0,90986.0,0.23080383]
[1765130011912,0.01748,90991.0,90990.0,0.21980425]
[1765130012141,0.02951,90992.0,90989.0,0.01099033]
[1765130012279,0.01748,90991.0,90990.0,0.21980437]
[1765130013015,0.01748,90991.0,90988.0,0.01099046]
[1765130013420,0.02847009,90991.0,90988.0,0.01099046]
[1765130013622,0.01748,90991.0,90988.0,0.01099046]
[1765130013821,0.01748,90991.0,90989.0,0.21980678]
[1765130014031,0.02951,90992.0,90989.0,0.23079711]
[1765130014238,0.02951,90992.0,90989.0,0.01099033]
[1765130014667,0.01748,90991.0,90989.0,0.23079696]
[1765130015068,0.02028,90990.0,90989.0,0.23079696]
[1765130015198,0.01748,90991.0,90989.0,0.23079696]
[1765130015397,0.01748,90991.0,90989.0,0.01099033]
[1765130015652,0.01748,90991.0,90985.0,0.01099082]
[1765130015653,0.01099058,90987.0,90983.0,0.01099106]
[1765130015817,0.01099058,90987.0,90983.0,0.23081211]
[1765130015818,0.02017,90984.0,90983.0,0.23081211]
[1765130016220,0.02017,90984.0,90983.0,0.01099106]
[1765130016437,0.02847009,90991.0,90987.0,0.01099058]
[1765130016656,0.01748,90991.0,90988.0,0.01099046]
[1765130017265,0.01748,90991.0,90989.0,0.21980678]
[1765130017436,0.01748,90991.0,90988.0,0.23079742]
[1765130018031,0.01748,90991.0,90989.0,0.2198045]
[1765130018868,0.21981097,90988.0,90982.0,0.23081461]
[1765130019113,0.01099058,90987.0,90982.0,0.01099118]
[1765130019324,0.02028,90984.0,90981.0,0.23081677]
[1765130019499,0.02220398,90985.0,90983.0,0.21982128]
[1765130019732,0.02220398,90985.0,90982.0,0.01099118]
[1765130019865,0.02037,90983.0,90982.0,0.01099118]
[1765130020047,0.02037,90983.0,90981.0,0.0109913]
[1765130020252,0.03319444,90988.0,90985.0,0.01099082]
[1765130020677,0.02037,90986.0,90985.0,0.01099082]
[1765130021221,0.01748,90991.0,90989.0,0.21980451]
[1765130021392,0.02951,90992.0,90991.0,0.21980195]
[1765130021574,0.04699,90992.0,90991.0,0.21980195]
[1765130025749,0.323,91003.0,91000.0,0.01098901]
[1765130025954,0.02028,90993.0,90991.0,0.01099009]
[1765130026253,0.0469,90992.0,90991.0,0.01099009]
[1765130026659,0.01099021,90990.0,90984.0,0.2198184]
[1765130026858,0.01099033,90989.0,90986.0,0.0109907]
[1765130027239,0.02913,90987.0,90984.0,0.01099094]
[1765130027427,0.02884,90985.0,90981.0,0.23081733]
[1765130027613,0.00087,90984.0,90982.0,0.01099118]
[1765130028219,0.0109913,90981.0,90977.0,0.01099178]
[1765130028429,0.03928166,90978.0,90975.0,0.00011798]
[1765130028738,0.00141,90976.0,90975.0,0.00011798]
[1765130028953,0.42778107,90976.0,90975.0,0.00011798]
[1765130029136,0.08472697,90971.0,90970.0,0.0004]
[1765130029366,0.43735984,90971.0,90970.0,0.0007941]
[1765130029504,0.5764549,90971.0,90970.0,0.0007941]
[1765130030351,0.44454586,90971.0,90970.0,0.0007941]
[1765130030592,0.46202586,90971.0,90970.0,0.0007941]
[1765130030763,0.48422984,90971.0,90970.0,0.0007941]
[1765130031220,0.02963287,90971.0,90970.0,0.0007941]
[1765130031358,0.04711287,90971.0,90970.0,0.0007941]
[1765130031552,0.01748,90971.0,90970.0,0.01326129]
[1765130031999,0.01099203,90975.0,90972.0,0.01099239]
[1765130032214,0.0109919,90976.0,90972.0,0.01099239]
[1765130032215,0.01748,90974.0,90972.0,0.01099239]
[1765130032712,0.01748,90974.0,90970.0,0.0007941]
[1765130032713,0.04038227,90973.0,90970.0,0.0007941]
[1765130032941,0.0291,90971.0,90970.0,0.01178673]
[1765130033266,0.08069398,90971.0,90970.0,0.0007941]
[1765130035371,0.06010287,90971.0,90970.0,0.0007941]
[1765130037076,0.62762559,90951.0,90940.0,0.0004]
[1765130037253,0.28249417,90921.0,90920.0,0.0004]
[1765130037410,0.01100073,90903.0,90897.0,0.01100146]
[1765130037606,0.24745958,90901.0,90900.0,0.00051807]
[1765130038004,0.26930958,90901.0,90900.0,0.00051807]
[1765130038768,0.29151356,90901.0,90900.0,0.00051807]
[1765130039100,0.02220398,90894.0,90888.0,0.15357377]
[1765130039301,0.02185,90890.0,90889.0,0.01100243]
[1765130039545,0.03933,90890.0,90889.0,0.01100243]
[1765130040346,0.03933,90890.0,90888.0,0.00011813]
[1765130040624,0.28637986,90889.0,90888.0,0.00011813]
[1765130040814,0.04487,90889.0,90888.0,0.00011813]
[1765130041604,0.01748,90889.0,90888.0,0.00011813]
[1765130041808,0.5,90970.0,90888.0,0.00011813]
[1765130041809,0.01100122,90899.0,90895.0,0.0110017]
[1765130042033,0.02848134,90898.0,90894.0,0.01100182]
[1765130042199,0.02803172,90905.0,90901.0,0.01100097]
[1765130042411,0.01100085,90902.0,90899.0,0.01100122]
[1765130042650,0.0328011,90900.0,90895.0,0.0110017]
[1765130042851,0.00022,90899.0,90895.0,0.0110017]
[1765130043165,0.01122122,90899.0,90896.0,0.01100158]
[1765130043372,0.02158,90896.0,90892.0,0.01100206]
[1765130043552,0.33400061,90904.0,90897.0,0.01100146]
[1765130043866,0.01748,90903.0,90900.0,0.0110011]
[1765130044027,0.01748,90903.0,90890.0,0.00099999]
[1765130044028,0.0218,90892.0,90890.0,0.00099999]
[1765130044390,0.02220398,90889.0,90888.0,0.01112068]
[1765130044577,0.01775,90891.0,90888.0,0.01112068]
[1765130044578,0.01775,90891.0,90889.0,0.22004863]
[1765130044738,0.01748,90891.0,90889.0,0.22004863]
[1765130044941,0.01100037,90906.0,90901.0,0.01100097]
[1765130045150,0.01748,90905.0,90900.0,0.0110011]
[1765130045350,0.01748,90905.0,90902.0,0.01100085]
[1765130045560,0.0110017,90895.0,90891.0,0.01100218]
[1765130045757,0.01748,90894.0,90892.0,0.01100206]
[1765130045958,0.01748,90894.0,90889.0,0.22004724]
[1765130045959,0.01748,90894.0,90889.0,0.01100243]
[1765130046150,0.01748,90894.0,90891.0,0.01100218]
[1765130046761,0.01748,90894.0,90892.0,0.22004136]
[1765130046969,0.22004696,90890.0,90888.0,0.00011813]
[1765130047165,0.01100218,90891.0,90888.0,0.00011813]
[1765130047166,0.04378398,90889.0,90888.0,0.00011813]
[1765130047644,0.07128398,90889.0,90888.0,0.00011813]
[1765130049510,0.01748,90889.0,90888.0,0.00011813]
[1765130049708,0.06672,90889.0,90888.0,0.00011813]
[1765130049912,0.08892398,90889.0,90888.0,0.00401449]
[1765130050117,0.0218,90889.0,90888.0,0.00401449]
[1765130050286,0.01748,90889.0,90888.0,0.00401449]
[1765130050485,0.28676863,90889.0,90888.0,0.00401449]
[1765130050765,0.2883815,90889.0,90888.0,0.00401449]
[1765130051905,0.35090449,90889.0,90888.0,0.00401449]
[1765130052099,0.22003664,90894.0,90888.0,0.00401449]
[1765130052100,0.33400158,90896.0,90892.0,0.01100206]
[1765130052299,0.33400158,90896.0,90890.0,0.23104798]
[1765130052300,0.09100469,90895.0,90890.0,0.23104798]
[1765130052594,0.41400469,90895.0,90891.0,0.01100218]
[1765130052795,0.0275,90891.0,90888.0,0.01112068]
[1765130053128,0.00161287,90895.0,90893.0,0.22003894]
[1765130053327,0.0275,90903.0,90899.0,0.01100122]
[1765130053328,0.01100073,90903.0,90899.0,0.01100122]
[1765130053509,0.22000731,90907.0,90901.0,0.22001958]
[1765130053510,0.01748,90902.0,90901.0,0.22001958]
[1765130053938,0.01748,90902.0,90900.0,0.0110011]
[1765130054120,0.01748,90902.0,90901.0,0.22001958]
[1765130054305,0.01748,90902.0,90900.0,0.0110011]
[1765130054509,0.0218,90901.0,90899.0,0.01100122]
[1765130054710,0.00027,90900.0,90899.0,0.23102537]
[1765130054911,0.0112711,90900.0,90895.0,0.0110017]
[1765130055106,0.00049,90896.0,90893.0,0.01100194]
[1765130055349,0.00049,90896.0,90894.0,0.22003652]
[1765130055747,0.02131,90895.0,90894.0,0.22003652]
[1765130056176,0.24295826,90895.0,90890.0,0.00099999]
[1765130056380,0.24295826,90895.0,90890.0,0.23104783]
[1765130056381,0.0218,90891.0,90890.0,0.23104783]
[1765130056577,0.02381685,90895.0,90890.0,0.23104783]
[1765130056784,0.01748,90894.0,90892.0,0.23104342]
[1765130057954,0.01748,90894.0,90891.0,0.01100218]
[1765130058284,0.01748,90894.0,90893.0,0.2237875]
[1765130058850,0.02803208,90902.0,90893.0,0.2237875]
[1765130058851,0.01703123,90902.0,90899.0,0.01100122]
[1765130059205,0.01748,90901.0,90899.0,0.01100122]
[1765130059403,0.01748,90901.0,90899.0,0.23102551]
[1765130059608,0.01748,90901.0,90900.0,0.00354168]
[1765130059970,0.0218,90901.0,90900.0,0.00354168]
[1765130060176,0.03928,90901.0,90900.0,0.00354168]
[1765130060397,0.33400001,90909.0,90904.0,0.01100061]
[1765130060557,0.01748,90906.0,90904.0,0.01100061]
[1765130060761,0.0218,90905.0,90904.0,0.01100061]
[1765130060962,0.0218,90905.0,90904.0,0.01442408]
[1765130061365,0.21998739,90915.0,90908.0,0.01100013]
[1765130061569,0.01703123,90910.0,90908.0,0.01100013]
[1765130061812,0.03928,90909.0,90906.0,0.01100037]
[1765130062027,0.00022,90906.0,90904.0,0.01100061]
[1765130062409,0.00022,90906.0,90905.0,0.00339392]
[1765130063360,0.01748,90909.0,90906.0,0.01100037]
[1765130063662,0.33399952,90913.0,90909.0,0.01100001]
[1765130063663,0.01703123,90912.0,90909.0,0.01100001]
[1765130063860,0.01748,90911.0,90909.0,0.01100001]
[1765130064004,0.0218,90910.0,90909.0,0.23100023]
[1765130064445,0.0218,90910.0,90907.0,0.23100406]
[1765130065027,0.01748,90909.0,90907.0,0.23100406]
[1765130068099,0.0275,90917.0,90909.0,0.01100001]
[1765130068253,0.01748,90916.0,90915.0,0.23098498]
[1765130068588,0.23095349,90928.0,90924.0,0.01099819]
[1765130068787,0.01099795,90926.0,90923.0,0.01099831]
[1765130069008,0.00161287,90930.0,90927.0,0.01099783]
[1765130069157,0.01748,90929.0,90927.0,0.01099783]
[1765130069337,0.01748,90929.0,90928.0,0.21995424]
[1765130069540,0.323,90945.0,90934.0,0.01099698]
[1765130069541,0.3562006,90937.0,90934.0,0.01099698]
[1765130069751,0.01099601,90942.0,90938.0,0.0109965]
[1765130069949,0.01748,90940.0,90938.0,0.0109965]
[1765130070585,0.01748,90940.0,90937.0,0.01099662]
[1765130071028,0.01748,90939.0,90937.0,0.23092839]
[1765130071252,0.0218,90938.0,90936.0,0.01099674]
[1765130071446,0.01748,90939.0,90937.0,0.21993248]
[1765130073441,0.02798,90941.0,90940.0,0.21992522]
[1765130073603,0.04546,90941.0,90940.0,0.21992522]
[1765130073810,0.06726,90941.0,90940.0,0.21992522]
[1765130074835,0.06726,90941.0,90940.0,0.28652522]
[1765130074836,0.01748,90941.0,90940.0,0.28652522]
[1765130075050,0.01748,90941.0,90940.0,0.37750522]
[1765130075250,0.0275,90964.0,90961.0,0.23086756]
[1765130075450,0.0275,90964.0,90961.0,0.01099372]